[Event "43rd Indian-chT 2023-24"]
[Site "Dharamsala"]
[Date "2024.04.02"]
[Round "7.7"]
[White "Ghosh, Diptayan"]
[Black "Anup Shankar R"]
[Result "1-0"]
[ECO "A50"]
[WhiteElo "2559"]
[BlackElo "1968"]
[Annotator "TA"]
[PlyCount "73"]
[EventDate "2024.03.28"]
[EventType "team-tourn"]
[EventCountry "IND"]
[SourceTitle "playchess.com"]
[Source "ChessBase"]
[SourceQuality "1"]
[TimeControl "5400+30"]

{[%evp 12,73,20,26,62,51,55,57,53,53,91,68,118,68,104,115,91,64,140,141,131,125,197,193,179,200,181,161,167,169,166,108,122,118,121,110,369,336,417,415,429,438,464,460,458,436,429,423,487,377,534,527,529,517,553,542,677,522,675,558,1156,1194,1047,822]} 1. Nf3 {[%emt 0:02:26]} Nf6 {[%emt 0:03:52]} 2. g3 {[%emt 0:00:06]} b6 {[%emt 0:00:05]} 3. Bg2 {[%emt 0:00:12]} Bb7 {[%emt 0:00:07]} 4. O-O {[%emt 0:00:07]} g6 {[%emt 0:00:07]} 5. c4 {[%emt 0:00:18]} Bg7 {[%emt 0:00:06]} 6. d4 {[%emt 0:00:05]} O-O {[%emt 0:00:06]} 7. d5 {[%emt 0:00:02]} c6 {[%emt 0:08:54]} 8. Nc3 {[%emt 0:00:24]} cxd5 {[%emt 0:00:09]} 9. cxd5 {[%emt 0:00:04]} Na6 {[%emt 0:08:11] White is slightly better.} 10. Nd4 {[%emt 0:02:10]} Qc8 {[%emt 0:08:39]} 11. Bf4 {[%emt 0:08:10]} Nh5 {[%emt 0:05:18] [#]} ({Black should play} 11... Ne8 $14) 12. Be3 {[%emt 0:01:11]} (12. Bg5 $1 $16) 12... e5 {[%emt 0:06:17]} 13. Ndb5 {[%emt 0:03:07]} Qb8 {[%emt 0:01:40] Repels Nd6} 14. Ne4 {[%emt 0:16:16] White is more active.} Nb4 {[%emt 0:07:40]} ({Black should try} 14... Nc7 $14 15. Nxc7 Qxc7) 15. Bg5 $16 {[%emt 0:28:44]} f6 {[%emt 0:35:59][%cal Bf7f6,Bf6f5,Bf5e4][%mdl 32]} 16. Bd2 {[%emt 0:07:04]} Na6 {[%emt 0:00:02]} (16... a5 $16 17. Ned6 f5) 17. Ned6 $18 {[%emt 0:02:28] Nxb7 would now be deadly.} f5 {[%emt 0:01:23]} 18. e4 {[%emt 0:03:37]} fxe4 {[%emt 0:03:09]} 19. Bg5 {[%emt 0:04:23][%cal Od6b7]} (19. Bxe4 Nc5 $16) 19... Nf6 {[%emt 0:02:05]} 20. Bxf6 {[%emt 0:06:51]} (20. Nxe4 $6 Nxe4 21. Bxe4 Nc5 $14) 20... Bxf6 {[%emt 0:00:27]} 21. Nxe4 {[%emt 0:05:21] A dynamic duo of knights.} (21. Bxe4 $6 Nc5 22. b4 Nxe4 23. Nxe4 a5 $14) (21. Rc1 $18) 21... Nc5 $16 {[%emt 0:01:54][%cal Ba6c5,Bc5b7,Bb7d6,Bd6f7][%mdl 32]} 22. Nxf6+ {[%emt 0:00:28]} Rxf6 {[%emt 0:00:05]} 23. b4 {[%emt 0:00:11]} Ba6 $2 {[%emt 0:01:29][%mdl 8192] Loses the game.} (23... Na6 $16) 24. a4 $18 {[%emt 0:00:20]} Nb7 {[%emt 0:01:02] [#]} 25. d6 $1 {[%emt 0:00:24][%mdl 512]} Qf8 {[%emt 0:01:26]} (25... Kh8 26. Re1) 26. Re1 {[%emt 0:02:13]} (26. Qd5+ Qf7 27. Rfe1 (27. Qxe5 Re8 $18) 27... Rf8 28. Qxf7+ (28. Rxe5 Bxb5 29. Qxb7 Rxd6 $18) (28. Nxa7 Nxd6 29. Qxf7+ Kxf7 $18) 28... R8xf7) 26... Rc8 {[%emt 0:02:11]} 27. Qd5+ {[%emt 0:04:43]} (27. Rxe5 Nxd6 28. Nxd6 (28. Nxa7 Rc7 $18) 28... Rxd6 29. Bd5+ Kg7 $18) 27... Kg7 {[%emt 0:00:02]} 28. Nc7 {[%emt 0:00:47]} (28. Nxa7 Rc2 29. Rac1 (29. Qxe5 Nxd6 30. Rac1 Rcxf2 $18) (29. Rxe5 $2 Rfxf2 30. b5 Rxg2+ 31. Qxg2 Rxg2+ 32. Kxg2 Nxd6 $19) 29... Rxc1 30. Rxc1 Nxd6 $18) (28. Rxe5 Nxd6 29. Rae1 (29. Nxa7 Rc2 $14) 29... Bxb5 $18) 28... Nxd6 {[%emt 0:01:29]} 29. Nxa6 {[%emt 0:00:33]} Rc2 {[%emt 0:00:31]} 30. Ra2 {[%emt 0:00:34]} ({And not} 30. Rxe5 Rfxf2 $17) 30... Rxa2 {[%emt 0:00:29]} (30... Rfxf2 {was necessary.} 31. Rxc2 (31. Qxe5+ Qf6 $18) 31... Rxc2 32. Qxe5+ (32. Rxe5 {gets mated.} Rc1+) 32... Qf6 33. Qxf6+ Kxf6) 31. Qxa2 {[%emt 0:00:01] White is clearly winning.} Qc8 {[%emt 0:00:02]} 32. b5 {[%emt 0:00:55]} Qc3 {[%emt 0:00:51]} 33. Rd1 {[%emt 0:01:07]} Nf7 {[%emt 0:00:39]} 34. h4 {[%emt 0:00:22]} d6 {[%emt 0:00:29]} 35. Qd2 {[%emt 0:00:18]} Qb3 {[%emt 0:00:29]} 36. Nc7 {[%emt 0:00:22]} Kf8 {[%emt 0:00:31]} 37. Nd5 {[%emt 0:00:24] Weighted Error Value: White=0.24 (precise) /Black=0.54.  Loses game:     	---       	Black=1      Mistake:       	White=2     	Black=4      Inaccurate:     	---       	Black=3      OK:         	White=11    	Black=10     Best:        	White=2     	Black=1      Brilliant:      	White=1     	---} 1-0

[Event "43rd Indian-chT 2023-24"]
[Site "Dharamsala"]
[Date "2024.04.02"]
[Round "7.8"]
[White "Dinesh Kumar Jaganathan"]
[Black "Visakh N R"]
[Result "1/2-1/2"]
[ECO "A05"]
[WhiteElo "1852"]
[BlackElo "2521"]
[Annotator "RC"]
[PlyCount "152"]
[EventDate "2024.03.28"]
[EventType "team-tourn"]
[EventCountry "IND"]
[SourceTitle "playchess.com"]
[Source "ChessBase"]
[SourceQuality "1"]
[TimeControl "5400+30"]

1. Nf3 {[%emt 0:04:54]} Nf6 {[%emt 0:00:13]} 2. g3 {[%emt 0:00:06]} b5 {[%emt 0:02:06]} 3. Bg2 {[%emt 0:00:38]} Bb7 {[%emt 0:00:06]} 4. O-O {[%emt 0:00:07]} e6 {[%emt 0:00:09]} 5. a4 {[%emt 0:01:11]} b4 {[%emt 0:00:06]} 6. c3 {[%emt 0:00:53]} a5 {[%emt 0:05:46]} 7. d4 {[%emt 0:04:23]} Be7 {[%emt 0:04:09]} 8. Nbd2 {[%emt 0:01:47]} O-O {[%emt 0:01:29]} 9. Re1 {[%emt 0:00:16]} d5 {[%emt 0:03:18]} 10. Ne5 {[%emt 0:04:30]} c5 {[%emt 0:03:32]} 11. e4 {[%emt 0:04:25]} bxc3 {[%emt 0:09:24]} 12. bxc3 {[%emt 0:00:07]} cxd4 {[%emt 0:00:02]} 13. cxd4 {[%emt 0:00:29]} Na6 {[%emt 0:00:16]} 14. Ba3 {[%emt 0:06:45]} Nb4 {[%emt 0:01:34]} 15. Rc1 {[%emt 0:04:50]} Rc8 {[%emt 0:05:39]} 16. Rxc8 {[%emt 0:04:47]} Qxc8 {[%emt 0:00:55]} 17. Qb3 {[%emt 0:01:01]} Rd8 {[%emt 0:10:24]} 18. Rc1 {[%emt 0:02:44]} Qb8 {[%emt 0:00:37]} 19. exd5 {[%emt 0:01:31]} Bxd5 {[%emt 0:02:03]} 20. Bxd5 {[%emt 0:00:07]} Nfxd5 {[%emt 0:00:06]} 21. Bxb4 {[%emt 0:04:25]} Nxb4 {[%emt 0:03:45]} 22. Nc6 {[%emt 0:03:16]} Qc7 {[%emt 0:11:37]} 23. Nxe7+ {[%emt 0:00:24]} Qxe7 {[%emt 0:01:01]} 24. Rc5 {[%emt 0:01:45]} g6 {[%emt 0:03:38]} 25. Qc3 {[%emt 0:04:33]} Qd7 {[%emt 0:02:15]} 26. Nb3 {[%emt 0:06:31]} Qxa4 {[%emt 0:00:50]} 27. Rxa5 {[%emt 0:00:03]} Nd5 {[%emt 0:00:04]} 28. Rxa4 {[%emt 0:00:08]} Nxc3 {[%emt 0:00:02]} 29. Rc4 {[%emt 0:00:10]} Nd5 {[%emt 0:00:10]} 30. Na5 {[%emt 0:04:50]} g5 {[%emt 0:01:41]} 31. h3 {[%emt 0:01:38]} h5 {[%emt 0:01:58]} 32. Nc6 {[%emt 0:00:51]} Ra8 {[%emt 0:00:07]} 33. Kg2 {[%emt 0:06:36]} Ra2 {[%emt 0:02:38]} 34. Nb4 {[%emt 0:02:40]} Ra4 {[%emt 0:00:48]} 35. Rc8+ {[%emt 0:00:04]} Kg7 {[%emt 0:00:04]} 36. Nc2 {[%emt 0:02:49]} Ra2 {[%emt 0:01:49]} 37. Kf3 {[%emt 0:02:38]} f5 {[%emt 0:03:54]} 38. Rc6 {[%emt 0:03:39]} Kf7 {[%emt 0:03:39]} 39. g4 {[%emt 0:07:41]} hxg4+ {[%emt 0:03:39]} 40. hxg4 {[%emt 0:00:02]} f4 {[%emt 0:00:01]} 41. Ke2 {[%emt 0:04:30]} Nf6 {[%emt 0:01:48]} 42. f3 {[%emt 0:00:57]} Nd5 {[%emt 0:00:32]} 43. Kd3 {[%emt 0:00:43]} Rb2 {[%emt 0:00:12]} 44. Rc8 {[%emt 0:01:13]} Rb1 {[%emt 0:00:39]} 45. Kd2 {[%emt 0:01:11]} Rf1 {[%emt 0:00:54]} 46. Ke2 {[%emt 0:00:07]} Rh1 {[%emt 0:00:02]} 47. Na3 {[%emt 0:00:36]} Rh2+ {[%emt 0:00:41]} 48. Ke1 {[%emt 0:00:47]} Ne3 {[%emt 0:00:46]} 49. Nb5 {[%emt 0:01:34]} Ke7 {[%emt 0:03:52]} 50. Rc7+ {[%emt 0:00:16]} Kf6 {[%emt 0:00:06]} 51. Nd6 {[%emt 0:00:29]} Nc2+ {[%emt 0:00:43]} 52. Kf1 {[%emt 0:00:08]} Nxd4 {[%emt 0:00:06]} 53. Ne4+ {[%emt 0:03:12]} Kg6 {[%emt 0:00:02]} 54. Re7 {[%emt 0:00:43]} Rh8 {[%emt 0:01:32]} 55. Kf2 {[%emt 0:00:12]} Ra8 {[%emt 0:00:27]} 56. Kf1 {[%emt 0:00:45]} Ra3 {[%emt 0:04:53]} 57. Kg2 {[%emt 0:00:01]} Re3 {[%emt 0:00:12]} 58. Re8 {[%emt 0:00:02]} Kf7 {[%emt 0:00:17]} 59. Nd6+ {[%emt 0:00:05]} Kg7 {[%emt 0:00:02]} 60. Ne4 {[%emt 0:01:17]} Rxf3 {[%emt 0:04:22]} 61. Re7+ {[%emt 0:01:12]} Kf8 {[%emt 0:00:25]} 62. Rxe6 {[%emt 0:00:02]} Re3 {[%emt 0:00:17]} 63. Re5 {[%emt 0:00:14]} Re2+ {[%emt 0:00:33]} 64. Kf1 {[%emt 0:00:11]} f3 {[%emt 0:00:01]} 65. Nc5 {[%emt 0:00:35]} Rxe5 {[%emt 0:00:28]} 66. Nd7+ {[%emt 0:00:01]} Ke7 {[%emt 0:00:01]} 67. Nxe5 {[%emt 0:00:01]} Ke6 {[%emt 0:00:01]} 68. Nd3 {[%emt 0:01:56]} Kd5 {[%emt 0:00:01]} 69. Nf2 {[%emt 0:00:16]} Ne6 {[%emt 0:00:01]} 70. Nh3 {[%emt 0:00:14]} Kd4 {[%emt 0:00:01]} 71. Kf2 {[%emt 0:00:06]} Ke4 {[%emt 0:00:01]} 72. Ng1 {[%emt 0:00:12]} Nd4 {[%emt 0:00:32]} 73. Nh3 {[%emt 0:00:00]} Ne6 {[%emt 0:00:33]} 74. Ng1 {[%emt 0:00:01]} Kf4 {[%emt 0:00:05]} 75. Nxf3 {[%emt 0:00:04]} Kxg4 {[%emt 0:00:02]} 76. Nxg5 {[%emt 0:00:06]} Nxg5 {[%emt 0:00:01]} 1/2-1/2

[Event "43rd Indian-chT 2023-24"]
[Site "Dharamsala"]
[Date "2024.04.03"]
[Round "8.1"]
[White "Adireddy Arjun"]
[Black "Krishna C R G"]
[Result "1-0"]
[ECO "C10"]
[WhiteElo "2299"]
[BlackElo "2445"]
[Annotator "TA"]
[PlyCount "140"]
[EventDate "2024.03.28"]
[EventType "team-tourn"]
[EventCountry "IND"]
[SourceTitle "playchess.com"]
[Source "ChessBase"]
[SourceQuality "1"]
[TimeControl "5400+30"]

{[%evp 32,140,34,14,13,27,33,25,29,0,51,25,30,11,11,8,8,12,8,6,25,5,22,4,8,12,12,0,48,8,21,0,0,0,0,5,23,21,62,54,112,118,112,112,102,110,123,112,115,106,105,72,60,11,3,0,0,0,39,39,51,51,51,51,51,51,51,0,0,0,0,0,0,0,0,0,0,0,0,0,0,0,15,0,0,0,0,0,0,0,0,0,0,0,0,0,0,0,29974,29975,29975,29976,29976,29977,29977,29978,29978,29979,29979,29980,29980]} 1. e4 {[%emt 0:00:40]} e6 {[%emt 0:00:02]} 2. d4 {[%emt 0:00:12]} d5 {[%emt 0:00:02]} 3. Nc3 {[%emt 0:00:08]} h6 {[%emt 0:00:06]} 4. Nf3 {[%emt 0:04:26]} Nf6 {[%emt 0:00:03]} 5. exd5 {[%emt 0:01:19]} exd5 {[%emt 0:00:03]} 6. Bf4 {[%emt 0:02:46] C10: French with 3 Nc3: Unusual Black 3rd moves and 3...dxe4.} c6 {[%emt 0:11:24]} 7. Bd3 {[%emt 0:01:56]} Bd6 {[%emt 0:06:48]} 8. Qe2+ {[%emt 0:09:48]} Be6 {[%emt 0:04:32]} 9. Bxd6 {[%emt 0:00:26]} Qxd6 {[%emt 0:00:03]} 10. Ne5 $146 {[%emt 0:01:17]} ({Predecessor:} 10. O-O-O Nbd7 11. Kb1 O-O-O 12. h3 Rhe8 13. Ne5 Qf8 14. f4 Nxe5 15. dxe5 {½-½ Hamiti,G (2141)-Mulolli,A (1969) KOS-chT Pristina 2018 (1.1)}) 10... O-O {[%emt 0:06:58]} 11. f4 {[%emt 0:01:49]} c5 {[%emt 0:01:04]} 12. Nb5 {[%emt 0:19:55]} Qb6 {[%emt 0:00:07]} 13. dxc5 {[%emt 0:00:51]} Qxc5 {[%emt 0:00:03]} 14. Qf2 {[%emt 0:10:23]} Qxf2+ {[%emt 0:17:46]} 15. Kxf2 {[%emt 0:00:14]} Nc6 {[%emt 0:00:09]} 16. Rhe1 {[%emt 0:02:03]} Rac8 {[%emt 0:05:11]} 17. c3 {[%emt 0:06:13]} a6 {[%emt 0:07:53]} 18. Nxc6 {[%emt 0:01:44]} bxc6 {[%emt 0:00:15]} 19. Nd4 {[%emt 0:00:02]} Bd7 $1 {[%emt 0:00:01]} 20. Bxa6 {[%emt 0:02:02]} Rb8 {[%emt 0:02:42]} ({Black should play} 20... Rc7 $11) 21. Nb3 {[%emt 0:01:25]} Bf5 {[%emt 0:00:01]} 22. Kg1 {[%emt 0:06:56]} Bc2 {[%emt 0:11:53]} 23. Nd4 {[%emt 0:00:22]} Rxb2 {[%emt 0:00:03]} 24. Nxc6 {[%emt 0:00:44]} Ra8 {[%emt 0:05:10]} 25. Bf1 {[%emt 0:00:36]} Ba4 {[%emt 0:05:04]} 26. Nd4 {[%emt 0:05:04]} Rc8 {[%emt 0:02:48]} 27. Re3 {[%emt 0:00:24]} Kf8 {[%emt 0:02:25]} 28. a3 {[%emt 0:03:56]} g6 {[%emt 0:02:48]} 29. Rc1 {[%emt 0:03:36]} Nd7 {[%emt 0:05:39]} (29... Rc7 $11) 30. c4 {[%emt 0:00:46]} dxc4 {[%emt 0:00:07]} 31. Bxc4 {[%emt 0:01:16]} Nb6 {[%emt 0:00:19]} 32. Rec3 {[%emt 0:00:01]} Rd8 {[%emt 0:00:28]} 33. Nf3 {[%emt 0:00:24]} Bc6 {[%emt 0:00:14]} 34. Bf1 {[%emt 0:00:33]} Bxf3 {[%emt 0:03:46]} 35. Rxf3 {[%emt 0:00:06]} Rdd2 {[%emt 0:00:46]} ({Black should try} 35... Rd5 $14) 36. f5 $16 {[%emt 0:00:11]} gxf5 {[%emt 0:00:26]} 37. Rxf5 {[%emt 0:00:03]} Nd5 {[%emt 0:00:35]} 38. Re1 {[%emt 0:00:56]} Nc3 {[%emt 0:01:13]} 39. Rf6 {[%emt 0:01:24]} Kg7 {[%emt 0:00:30]} 40. Rf3 {[%emt 0:00:06]} Ne2+ {[%emt 0:00:30]} 41. Kh1 {[%emt 0:00:02]} Nd4 {[%emt 0:00:17]} 42. Rf4 {[%emt 0:01:05]} (42. Rg3+ $14 Kf6 43. Kg1) 42... f5 $11 {[%emt 0:00:23]} 43. h4 {[%emt 0:02:13]} Kf6 {[%emt 0:00:18]} 44. g4 {[%emt 0:02:09]} Rb3 {[%emt 0:00:50]} 45. Ree4 {[%emt 0:04:37]} Rf3 {[%emt 0:00:43]} 46. Rxd4 {[%emt 0:01:08]} Rxf1+ $1 {[%emt 0:00:03]} 47. Rxf1 {[%emt 0:00:04]} Rxd4 {[%emt 0:00:02]} 48. Rxf5+ {[%emt 0:00:01]} Ke7 {[%emt 0:00:25]} 49. Ra5 {[%emt 0:01:23]} (49. Re5+ $14 Kf7 50. Rf5+ Kg8 51. Ra5) 49... Rxg4 $11 {[%emt 0:00:20]} 50. h5 {[%emt 0:00:01]} Kf6 {[%emt 0:01:40]} 51. Kh2 {[%emt 0:00:41]} Rg8 {[%emt 0:00:22]} 52. Kh3 {[%emt 0:00:42]} Rb8 {[%emt 0:00:39]} 53. Kg4 {[%emt 0:00:10]} Rb3 {[%emt 0:00:23]} 54. Rf5+ {[%emt 0:01:35]} Ke6 {[%emt 0:00:21]} 55. Ra5 {[%emt 0:01:28]} Rc3 {[%emt 0:00:41]} 56. Ra6+ {[%emt 0:03:35]} Ke5 {[%emt 0:00:03]} 57. Rxh6 {[%emt 0:00:05]} Rxa3 {[%emt 0:00:06]} 58. Rb6 {[%emt 0:00:06]} Ra1 {[%emt 0:00:53]} 59. Kg5 {[%emt 0:00:16]} Rg1+ {[%emt 0:00:09]} 60. Kh6 {[%emt 0:00:04]} Kf5 {[%emt 0:00:29]} 61. Kh7 {[%emt 0:00:42]} Rh1 {[%emt 0:00:51]} 62. h6 {[%emt 0:01:27]} Ra1 {[%emt 0:00:52]} 63. Rg6 {[%emt 0:00:43]} Ra7+ {[%emt 0:00:42]} 64. Rg7 {[%emt 0:00:03]} Ra1 $2 {[%emt 0:00:28][%mdl 8192] [#]} (64... Ra6 $11) 65. Rf7+ $1 {[%emt 0:00:22]} Ke6 {[%emt 0:00:30]} 66. Kg8 {[%emt 0:00:04]} Rg1+ {[%emt 0:00:13] [#]} 67. Kf8 $1 {[%emt 0:00:18]} Rg2 {[%emt 0:00:48]} 68. h7 {[%emt 0:00:19]} Rh2 {[%emt 0:00:02]} 69. Kg8 {[%emt 0:00:07]} Rg2+ {[%emt 0:00:27]} 70. Rg7 {[%emt 0:00:02]} Ra2 {[%emt 0:00:03]} 1-0

[Event "43rd Indian-chT 2023-24"]
[Site "Dharamsala"]
[Date "2024.04.03"]
[Round "8.2"]
[White "Aronyak Ghosh"]
[Black "Sriram Adarsh Uppala"]
[Result "1-0"]
[ECO "D02"]
[WhiteElo "2517"]
[BlackElo "2141"]
[Annotator "TA"]
[PlyCount "103"]
[EventDate "2024.03.28"]
[EventType "team-tourn"]
[EventCountry "IND"]
[SourceTitle "playchess.com"]
[Source "ChessBase"]
[SourceQuality "1"]
[TimeControl "5400+30"]

{[%evp 9,103,22,30,23,39,39,41,37,36,50,37,25,43,37,25,43,35,37,29,32,30,19,48,43,42,32,27,21,31,32,31,27,27,37,37,38,25,11,48,25,47,43,133,125,182,168,189,177,189,173,325,326,332,309,295,155,256,204,239,241,247,249,237,236,241,212,281,234,335,323,381,393,395,395,357,378,331,340,721,668,1062,917,1066,1016,1036,872,974,1020,1017,993,1273,1087,1501,1460,1736,1164]} 1. Nf3 {[%emt 0:01:08]} d5 {[%emt 0:00:39]} 2. g3 {[%emt 0:00:52]} Nc6 {[%emt 0:01:35]} 3. d4 {[%emt 0:01:27]} Bf5 {[%emt 0:00:19]} 4. Bg2 {[%emt 0:00:35]} e6 {[%emt 0:00:10]} 5. O-O {[%emt 0:01:09]} Nb4 {[%emt 0:00:12]} 6. Ne1 {[%emt 0:00:22][%cal Oc2c4]} Nf6 {[%emt 0:01:17]} 7. c3 {[%emt 0:00:29] Wards off c5} Nc6 {[%emt 0:00:12]} 8. Bg5 {[%emt 0:00:41] White is slightly better.} Be7 {[%emt 0:01:24]} 9. Bxf6 {[%emt 0:00:22]} Bxf6 {[%emt 0:00:09]} 10. Nd2 {[%emt 0:00:03]} O-O {[%emt 0:00:47]} 11. e4 {[%emt 0:00:58]} dxe4 {[%emt 0:02:07]} 12. Nxe4 {[%emt 0:00:08]} e5 {[%emt 0:01:41]} 13. d5 {[%emt 0:00:48]} Bxe4 {[%emt 0:00:16]} 14. Bxe4 {[%emt 0:00:05]} Ne7 {[%emt 0:00:06] Black is weak on the light squares} 15. c4 {[%emt 0:00:07]} Qd7 {[%emt 0:02:38]} 16. Nd3 {[%emt 0:06:48]} Rad8 {[%emt 0:01:53]} 17. Qc2 {[%emt 0:22:09]} g6 {[%emt 0:01:50]} 18. Rad1 {[%emt 0:00:21]} Qc8 {[%emt 0:00:46]} 19. Rfe1 {[%emt 0:01:40]} Rfe8 {[%emt 0:03:09][%cal Bf8e8,Be8g8,Bg8g6][%mdl 32]} 20. Qa4 {[%emt 0:04:25]} a6 {[%emt 0:05:12]} 21. Nc5 {[%emt 0:03:44][%cal Od5d6]} Nf5 {[%emt 0:01:12]} 22. Bxf5 {[%emt 0:03:28]} gxf5 {[%emt 0:00:10]} 23. f3 {[%emt 0:05:09]} Kh8 {[%emt 0:00:12][%cal Oe5e4]} 24. Qc2 {[%emt 0:01:18]} Rg8 {[%emt 0:02:36]} 25. Nd3 $36 {[%emt 0:05:47][%mdl 2048] Black is under pressure.} Rde8 {[%emt 0:00:09] Black is now going downhill.} ({Better is} 25... f4 $1 $14) 26. Qc3 $16 {[%emt 0:03:01][%cal Of3f4] Strongly threatening f4! White is more active.} f4 {[%emt 0:11:34] [#]} (26... c6 $16) 27. Nxf4 $1 $18 {[%emt 0:00:22]} (27. Nxe5 fxg3 28. Nxf7+ Kg7 29. Rxe8 Qxe8 $19) 27... Qf5 {[%emt 0:00:05]} 28. Ng2 {[%emt 0:00:18]} Rg6 {[%emt 0:05:33]} 29. Qd3 {[%emt 0:05:57]} Qh3 {[%emt 0:02:00]} (29... Qxd3 {might work better.} 30. Rxd3 Be7) 30. Nf4 {[%emt 0:02:14]} exf4 {[%emt 0:00:07]} 31. Rxe8+ {[%emt 0:00:03]} Kg7 {[%emt 0:00:08]} 32. Qf1 {[%emt 0:01:33]} ({White should try} 32. g4 $18) 32... Qf5 {[%emt 0:16:36]} (32... Qd7 $16 {keeps fighting.} 33. Re2 fxg3) 33. Qg2 {[%emt 0:03:33] Threatens to win with g4.} h5 {[%emt 0:03:21]} 34. Re4 {[%emt 0:03:45]} Be5 {[%emt 0:01:53][%cal Bf6e5,Be5d6,Bd6b4][%mdl 32]} 35. Qe2 {[%emt 0:00:24]} Bd6 {[%emt 0:01:53] [#]} 36. Kg2 {[%emt 0:00:07]} fxg3 {[%emt 0:01:22]} 37. h3 {[%emt 0:00:51]} Rf6 {[%emt 0:02:06]} 38. Rd3 {[%emt 0:01:26]} Qg5 {[%emt 0:00:27] [#]} (38... b6 $142 39. Rd2 Bb4) 39. b4 $1 {[%emt 0:03:49]} Bxb4 {[%emt 0:01:08] [#]} (39... b6 40. Qb2) 40. f4 $1 {[%emt 0:00:38][%mdl 512]} Qf5 {[%emt 0:01:44]} 41. Rxg3+ {[%emt 0:00:34]} Rg6 {[%emt 0:00:09]} 42. Rxg6+ {[%emt 0:01:43]} Qxg6+ {[%emt 0:00:09][%mdl 4096] Endgame. KQR-KQB} 43. Kf3 {[%emt 0:00:35] Black must now prevent Qb2+.} Qf5 $2 {[%emt 0:00:20]} (43... Bd6 44. Qg2 Qxg2+ 45. Kxg2 h4) 44. Qb2+ {[%emt 0:01:20] White is clearly winning.} f6 {[%emt 0:00:06]} 45. Qxb4 {[%emt 0:00:19]} Qxh3+ {[%emt 0:00:07]} 46. Ke2 {[%emt 0:00:19] Intending Qe7+ and mate.} Qg2+ {[%emt 0:00:22]} 47. Kd3 {[%emt 0:01:36] White threatens Qe7+ and mate.} Qf1+ {[%emt 0:00:20]} 48. Re2 {[%emt 0:00:16] And now Qe7+ would win.} Qf3+ {[%emt 0:00:07]} 49. Re3 {[%emt 0:00:18] Threatening mate with Qe7+.} Qd1+ {[%emt 0:00:17]} 50. Qd2 {[%emt 0:00:07]} Qf1+ {[%emt 0:00:04]} 51. Re2 {[%emt 0:01:19]} Qb1+ {[%emt 0:00:10]} 52. Qc2 {[%emt 0:00:21] Weighted Error Value: White=0.15 (very precise) /Black=0.32.  Mistake:       	White=1     	Black=6      Inaccurate:     	---       	Black=4      OK:         	White=13    	Black=16     Best:        	White=7     	Black=2      Strong:       	White=1     	---} 1-0